[Event "White Rook U14 Final 2019"]
[Site "Sochi"]
[Date "2019.06.06"]
[Round "3.32"]
[White "Kulish, Glafira"]
[Black "Belova, Tatyana"]
[Result "1/2-1/2"]
[ECO "D36"]
[WhiteElo "1379"]
[BlackElo "1584"]
[Annotator "NA RC"]
[PlyCount "85"]
[EventDate "2019.06.02"]
[EventCountry "RUS"]
[SourceTitle "playchess.com"]
[Source "ChessBase"]
[SourceQuality "1"]
[TimeControl "5400+30"]

1. d4 {[%emt 0:00:00]} d5 {[%emt 0:00:05]} 2. c4 {[%emt 0:00:06]} e6 {[%emt 0:00:03]} 3. Nc3 {[%emt 0:00:07]} Nf6 {[%emt 0:00:08]} 4. cxd5 {[%emt 0:00:06]} exd5 {[%emt 0:00:08]} 5. Bg5 {[%emt 0:00:02]} Be7 {[%emt 0:01:51]} 6. e3 {[%emt 0:00:08]} Nbd7 {[%emt 0:02:17]} 7. Qc2 {[%emt 0:00:43]} c6 {[%emt 0:02:36]} 8. Bd3 {[%emt 0:00:08]} h6 {[%emt 0:01:45]} 9. Bh4 {[%emt 0:00:23]} Nh5 {[%emt 0:04:31]} 10. Bxe7 {[%emt 0:00:29]} Qxe7 {[%emt 0:00:09]} 11. Nge2 {[%emt 0:04:08]} Nb6 {[%emt 0:03:04]} 12. O-O {[%emt 0:04:28]} Bd7 {[%emt 0:03:31]} 13. Rab1 {[%emt 0:01:57]} g5 {[%emt 0:03:27]} 14. b4 {[%emt 0:07:28]} Ng7 {[%emt 0:04:00]} 15. e4 {[%emt 0:01:05]} Rc8 {[%emt 0:06:03]} 16. Ng3 {[%emt 0:07:03]} dxe4 {[%emt 0:08:38]} 17. Ngxe4 {[%emt 0:00:38]} Nd5 {[%emt 0:02:52]} 18. Rfe1 {[%emt 0:00:25]} Kd8 {[%emt 0:02:33]} 19. Nc5 {[%emt 0:00:46]} Be6 {[%emt 0:01:55]} 20. Bc4 {[%emt 0:07:42]} Qc7 {[%emt 0:13:33]} 21. b5 {[%emt 0:10:23]} Bf5 {[%emt 0:04:01]} 22. Bd3 {[%emt 0:01:40]} Bxd3 {[%emt 0:01:04]} 23. Qxd3 {[%emt 0:00:22]} Nxc3 {[%emt 0:00:33]} 24. Qxc3 {[%emt 0:00:08]} cxb5 {[%emt 0:01:12]} 25. d5 {[%emt 0:06:25]} Qxc5 {[%emt 0:03:18]} 26. Qxg7 {[%emt 0:00:08]} Qf8 {[%emt 0:00:49]} 27. Qf6+ {[%emt 0:01:26]} Kd7 {[%emt 0:00:31]} 28. Rxb5 {[%emt 0:02:46]} b6 {[%emt 0:02:23]} 29. Qf5+ {[%emt 0:02:20]} Kc7 {[%emt 0:03:39]} 30. d6+ {[%emt 0:12:20]} Qxd6 {[%emt 0:03:42]} 31. Rc1+ {[%emt 0:00:19]} Kb8 {[%emt 0:00:19]} 32. Re1 {[%emt 0:01:24]} Qc7 {[%emt 0:02:04]} 33. Rbe5 {[%emt 0:02:42]} Qc4 {[%emt 0:03:25]} 34. Qd7 {[%emt 0:05:27]} Qc7 {[%emt 0:01:35]} 35. Re7 {[%emt 0:00:45]} Qxd7 {[%emt 0:00:14]} 36. Rxd7 {[%emt 0:00:11]} f5 {[%emt 0:00:56]} 37. g3 {[%emt 0:00:09]} Rcd8 {[%emt 0:04:16]} 38. Rf7 {[%emt 0:00:35]} Rdf8 {[%emt 0:00:32]} 39. Rg7 {[%emt 0:01:18]} f4 {[%emt 0:01:34]} 40. Ree7 {[%emt 0:00:05]} fxg3 {[%emt 0:01:19]} 41. Rb7+ {[%emt 0:02:39]} Kc8 {[%emt 0:02:49]} 42. Rbc7+ {[%emt 0:00:11]} Kb8 {[%emt 0:01:30]} 43. Rb7+ {[%emt 0:00:13]} 1/2-1/2

[Event "White Rook U14 Final 2019"]
[Site "Sochi"]
[Date "2019.06.06"]
[Round "3.33"]
[White "Mertsalov, Roman"]
[Black "Sargsyan, Gor K."]
[Result "1-0"]
[ECO "E72"]
[WhiteElo "1349"]
[BlackElo "1641"]
[Annotator "NA RC"]
[PlyCount "75"]
[EventDate "2019.06.02"]
[EventCountry "RUS"]
[SourceTitle "playchess.com"]
[Source "ChessBase"]
[SourceQuality "1"]
[TimeControl "5400+30"]

1. d4 {[%emt 0:00:00]} Nf6 {[%emt 0:00:14]} 2. c4 {[%emt 0:00:09]} g6 {[%emt 0:00:00]} 3. Nc3 {[%emt 0:00:06]} Bg7 {[%emt 0:00:03]} 4. e4 {[%emt 0:00:08]} d6 {[%emt 0:00:03]} 5. g3 {[%emt 0:00:02]} O-O {[%emt 0:00:08]} 6. Bg2 {[%emt 0:00:09]} c5 {[%emt 0:00:11]} 7. Nge2 {[%emt 0:01:01]} a6 {[%emt 0:00:56]} 8. O-O {[%emt 0:02:31]} Qc7 {[%emt 0:00:20]} 9. dxc5 {[%emt 0:09:27]} Qxc5 {[%emt 0:06:53]} 10. Qb3 {[%emt 0:02:46]} Qc7 {[%emt 0:02:41]} 11. Be3 {[%emt 0:02:23]} Nbd7 {[%emt 0:01:32]} 12. Nd5 {[%emt 0:00:17]} Nxd5 {[%emt 0:04:55]} 13. cxd5 {[%emt 0:01:23]} Nc5 {[%emt 0:00:14]} 14. Bxc5 {[%emt 0:00:24]} dxc5 {[%emt 0:00:08]} 15. Rac1 {[%emt 0:00:48]} b6 {[%emt 0:00:41]} 16. f4 {[%emt 0:01:22]} Bg4 {[%emt 0:01:22]} 17. Nc3 {[%emt 0:00:47]} Bd4+ {[%emt 0:00:15]} 18. Kh1 {[%emt 0:02:21]} Rad8 {[%emt 0:00:19]} 19. h3 {[%emt 0:00:09]} Bc8 {[%emt 0:00:30]} 20. e5 {[%emt 0:00:04]} b5 {[%emt 0:00:09]} 21. Ne2 {[%emt 0:01:02]} Qa7 {[%emt 0:02:51]} 22. Nxd4 {[%emt 0:00:44]} cxd4 {[%emt 0:00:57]} 23. g4 {[%emt 0:00:36]} Bb7 {[%emt 0:00:03]} 24. f5 {[%emt 0:01:51]} Qa8 {[%emt 0:01:20]} 25. Rc5 {[%emt 0:05:24]} e6 {[%emt 0:03:15]} 26. fxg6 {[%emt 0:06:27]} fxg6 {[%emt 0:02:32]} 27. Rxf8+ {[%emt 0:00:52]} Kxf8 {[%emt 0:06:39]} 28. Qf3+ {[%emt 0:00:58]} Kg8 {[%emt 0:00:31]} 29. Qf6 {[%emt 0:00:45]} Rf8 {[%emt 0:00:15]} 30. Qxe6+ {[%emt 0:00:41]} Kh8 {[%emt 0:05:54]} 31. Qe7 {[%emt 0:00:22]} Rf2 {[%emt 0:00:10]} 32. Rc7 {[%emt 0:00:53]} Qg8 {[%emt 0:01:49]} 33. Rxb7 {[%emt 0:01:33]} d3 {[%emt 0:00:03]} 34. Qc5 {[%emt 0:00:44]} d2 {[%emt 0:00:03]} 35. Qd4 {[%emt 0:02:37]} Qf8 {[%emt 0:00:09]} 36. e6+ {[%emt 0:01:36]} Qf6 {[%emt 0:00:07]} 37. e7 {[%emt 0:00:06]} Rf1+ {[%emt 0:00:06]} 38. Bxf1 {[%emt 0:01:45]} 1-0

[Event "White Rook U14 Final 2019"]
[Site "Sochi"]
[Date "2019.06.06"]
[Round "3.34"]
[White "Grigoryan, Hayk V."]
[Black "Mertsalov, Semen"]
[Result "1/2-1/2"]
[ECO "B90"]
[WhiteElo "1423"]
[BlackElo "1477"]
[Annotator "NA RC"]
[PlyCount "132"]
[EventDate "2019.06.02"]
[EventCountry "RUS"]
[SourceTitle "playchess.com"]
[Source "ChessBase"]
[SourceQuality "1"]
[TimeControl "5400+30"]

1. e4 {[%emt 0:00:00]} c5 {[%emt 0:00:23]} 2. Nf3 {[%emt 0:00:06]} d6 {[%emt 0:00:08]} 3. d4 {[%emt 0:00:03]} cxd4 {[%emt 0:00:05]} 4. Nxd4 {[%emt 0:00:06]} Nf6 {[%emt 0:00:08]} 5. Nc3 {[%emt 0:00:05]} a6 {[%emt 0:00:09]} 6. f3 {[%emt 0:00:05]} e5 {[%emt 0:00:06]} 7. Nb3 {[%emt 0:00:02]} Be6 {[%emt 0:00:07]} 8. Be3 {[%emt 0:00:09]} Nbd7 {[%emt 0:00:06]} 9. Qd2 {[%emt 0:00:29]} b5 {[%emt 0:00:05]} 10. O-O-O {[%emt 0:01:11]} h5 {[%emt 0:00:56]} 11. Kb1 {[%emt 0:01:26]} Rc8 {[%emt 0:00:51]} 12. a3 {[%emt 0:05:15]} Be7 {[%emt 0:00:32]} 13. Rg1 {[%emt 0:01:07]} Qc7 {[%emt 0:00:13]} 14. Be2 {[%emt 0:00:00]} Nb6 {[%emt 0:01:26]} 15. Bxb6 {[%emt 0:03:18]} Qxb6 {[%emt 0:10:25]} 16. Nd5 {[%emt 0:00:06]} Bxd5 {[%emt 0:00:09]} 17. exd5 {[%emt 0:00:57]} a5 {[%emt 0:00:10]} 18. Qxa5 {[%emt 0:00:55]} Qxa5 {[%emt 0:00:29]} 19. Nxa5 {[%emt 0:00:21]} Rc5 {[%emt 0:00:05]} 20. Nb3 {[%emt 0:00:28]} Rxd5 {[%emt 0:00:20]} 21. Rxd5 {[%emt 0:00:08]} Nxd5 {[%emt 0:00:00]} 22. Bxb5+ {[%emt 0:00:12]} Kd8 {[%emt 0:00:00]} 23. Bc4 {[%emt 0:00:24]} Nf4 {[%emt 0:00:12]} 24. Bxf7 {[%emt 0:00:13]} Kc7 {[%emt 0:00:54]} 25. g3 {[%emt 0:00:06]} Rf8 {[%emt 0:01:00]} 26. Bc4 {[%emt 0:01:26]} Nh3 {[%emt 0:03:07]} 27. Rf1 {[%emt 0:01:46]} Ng5 {[%emt 0:00:46]} 28. Be2 {[%emt 0:00:12]} g6 {[%emt 0:00:59]} 29. c4 {[%emt 0:01:02]} Rb8 {[%emt 0:01:08]} 30. Kc2 {[%emt 0:00:56]} Ne6 {[%emt 0:00:09]} 31. Bd3 {[%emt 0:00:06]} g5 {[%emt 0:00:47]} 32. Kc3 {[%emt 0:00:12]} Bf6 {[%emt 0:00:11]} 33. Be4 {[%emt 0:00:21]} Nd4 {[%emt 0:00:02]} 34. Nc1 {[%emt 0:02:12]} Rb6 {[%emt 0:02:28]} 35. b4 {[%emt 0:03:27]} Ra6 {[%emt 0:02:04]} 36. Kb2 {[%emt 0:00:06]} Ra4 {[%emt 0:00:05]} 37. Nb3 {[%emt 0:04:05]} Ne6 {[%emt 0:00:45]} 38. Rd1 {[%emt 0:00:38]} Ra6 {[%emt 0:02:09]} 39. Rd5 {[%emt 0:11:35]} Rc6 {[%emt 0:03:58]} 40. Kc3 {[%emt 0:03:56]} Rb6 {[%emt 0:04:29]} 41. c5 {[%emt 0:02:30]} dxc5 {[%emt 0:05:20]} 42. Nxc5 {[%emt 0:00:23]} Nxc5 {[%emt 0:00:23]} 43. Rxc5+ {[%emt 0:00:52]} Kb8 {[%emt 0:04:01]} 44. Rc6 {[%emt 0:05:22]} Rxc6+ {[%emt 0:00:06]} 45. Bxc6 {[%emt 0:00:00]} e4+ {[%emt 0:00:06]} 46. Kd2 {[%emt 0:00:14]} exf3 {[%emt 0:00:07]} 47. Bxf3 {[%emt 0:00:06]} h4 {[%emt 0:00:00]} 48. gxh4 {[%emt 0:00:09]} gxh4 {[%emt 0:00:05]} 49. h3 {[%emt 0:00:03]} Kc7 {[%emt 0:00:05]} 50. Kd3 {[%emt 0:00:03]} Kb6 {[%emt 0:00:08]} 51. Kc4 {[%emt 0:00:12]} Ka6 {[%emt 0:00:13]} 52. a4 {[%emt 0:00:27]} Bd8 {[%emt 0:00:11]} 53. Bg4 {[%emt 0:00:14]} Bc7 {[%emt 0:00:17]} 54. Kc5 {[%emt 0:00:21]} Bb6+ {[%emt 0:02:45]} 55. Kc6 {[%emt 0:00:42]} Bd8 {[%emt 0:00:09]} 56. Bc8+ {[%emt 0:00:41]} Ka7 {[%emt 0:00:22]} 57. a5 {[%emt 0:00:08]} Kb8 {[%emt 0:09:31]} 58. Bg4 {[%emt 0:01:11]} Bc7 {[%emt 0:06:31]} 59. Kb5 {[%emt 0:04:53]} Ka7 {[%emt 0:04:45]} 60. Bf3 {[%emt 0:00:23]} Bd8 {[%emt 0:00:38]} 61. Kc6 {[%emt 0:00:11]} Kb8 {[%emt 0:02:16]} 62. Be2 {[%emt 0:00:43]} Bc7 {[%emt 0:00:14]} 63. Kd7 {[%emt 0:00:15]} Bf4 {[%emt 0:00:34]} 64. Kc6 {[%emt 0:00:07]} Bc7 {[%emt 0:01:25]} 65. a6 {[%emt 0:00:10]} Bd8 {[%emt 0:00:19]} 66. b5 {[%emt 0:00:16]} Ka7 {[%emt 0:01:36]} 1/2-1/2

[Event "White Rook U14 Final 2019"]
[Site "Sochi"]
[Date "2019.06.06"]
[Round "3.35"]
[White "Moshkin, Aleksandr"]
[Black "Hovhannisyan, Artyom"]
[Result "1/2-1/2"]
[ECO "A05"]
[WhiteElo "1462"]
[BlackElo "1458"]
[Annotator "NA RC"]
[PlyCount "98"]
[EventDate "2019.06.02"]
[EventCountry "RUS"]
[SourceTitle "playchess.com"]
[Source "ChessBase"]
[SourceQuality "1"]
[TimeControl "5400+30"]

1. Nf3 {[%emt 0:00:00]} Nf6 {[%emt 0:00:23]} 2. g3 {[%emt 0:00:00]} b6 {[%emt 0:00:12]} 3. Bg2 {[%emt 0:00:00]} Bb7 {[%emt 0:00:12]} 4. O-O {[%emt 0:00:00]} e6 {[%emt 0:00:01]} 5. d3 {[%emt 0:00:05]} Be7 {[%emt 0:00:34]} 6. Nbd2 {[%emt 0:00:09]} d6 {[%emt 0:01:46]} 7. e4 {[%emt 0:00:11]} Nbd7 {[%emt 0:00:19]} 8. Ne1 {[%emt 0:00:12]} e5 {[%emt 0:00:43]} 9. f4 {[%emt 0:00:23]} O-O {[%emt 0:01:53]} 10. f5 {[%emt 0:00:05]} d5 {[%emt 0:00:16]} 11. Qe2 {[%emt 0:00:41]} Re8 {[%emt 0:04:27]} 12. exd5 {[%emt 0:01:16]} Bxd5 {[%emt 0:00:24]} 13. Ne4 {[%emt 0:00:13]} Bxe4 {[%emt 0:00:39]} 14. dxe4 {[%emt 0:00:15]} Nc5 {[%emt 0:01:11]} 15. c3 {[%emt 0:00:19]} Qd7 {[%emt 0:00:59]} 16. g4 {[%emt 0:00:14]} Red8 {[%emt 0:02:30]} 17. g5 {[%emt 0:01:29]} Ne8 {[%emt 0:05:41]} 18. Be3 {[%emt 0:00:00]} a5 {[%emt 0:07:20]} 19. h4 {[%emt 0:15:10]} Qc6 {[%emt 0:03:01]} 20. Qg4 {[%emt 0:07:47]} Nd3 {[%emt 0:02:59]} 21. f6 {[%emt 0:02:46]} Bf8 {[%emt 0:00:11]} 22. Qf3 {[%emt 0:06:18]} g6 {[%emt 0:03:01]} 23. h5 {[%emt 0:00:22]} Bc5 {[%emt 0:03:17]} 24. hxg6 {[%emt 0:00:49]} hxg6 {[%emt 0:00:06]} 25. Kh2 {[%emt 0:00:53]} Bxe3 {[%emt 0:00:16]} 26. Qxe3 {[%emt 0:00:16]} Nf4 {[%emt 0:00:10]} 27. Rxf4 {[%emt 0:08:29]} exf4 {[%emt 0:00:46]} 28. Qxf4 {[%emt 0:00:37]} Qd6 {[%emt 0:01:24]} 29. Qxd6 {[%emt 0:09:27]} Rxd6 {[%emt 0:00:09]} 30. Nf3 {[%emt 0:00:08]} Rad8 {[%emt 0:00:35]} 31. Re1 {[%emt 0:00:11]} c5 {[%emt 0:00:32]} 32. Re2 {[%emt 0:00:49]} Nc7 {[%emt 0:00:20]} 33. e5 {[%emt 0:01:39]} Rd5 {[%emt 0:00:46]} 34. Bh3 {[%emt 0:01:18]} Ne6 {[%emt 0:01:20]} 35. Bxe6 {[%emt 0:00:39]} fxe6 {[%emt 0:00:05]} 36. Kg3 {[%emt 0:01:04]} R8d7 {[%emt 0:03:00]} 37. Nh4 {[%emt 0:00:42]} Kf7 {[%emt 0:00:33]} 38. Rh2 {[%emt 0:08:03]} Rd2 {[%emt 0:00:12]} 39. Ng2 {[%emt 0:00:40]} Rxb2 {[%emt 0:07:26]} 40. Rh7+ {[%emt 0:00:37]} Ke8 {[%emt 0:00:07]} 41. Rh8+ {[%emt 0:00:09]} Kf7 {[%emt 0:00:07]} 42. Nf4 {[%emt 0:00:32]} Rc2 {[%emt 0:23:43]} 43. Rh7+ {[%emt 0:00:22]} Ke8 {[%emt 0:00:07]} 44. Rxd7 {[%emt 0:00:38]} Kxd7 {[%emt 0:00:06]} 45. Nxg6 {[%emt 0:00:11]} Rxc3+ {[%emt 0:00:04]} 46. Kg4 {[%emt 0:00:16]} Ke8 {[%emt 0:00:21]} 47. Ne7 {[%emt 0:12:53]} Rc1 {[%emt 0:00:20]} 48. Kh5 {[%emt 0:00:41]} c4 {[%emt 0:01:16]} 49. Nc6 {[%emt 0:00:48]} Rd1 {[%emt 0:00:52]} 1/2-1/2

[Event "White Rook U14 Final 2019"]
[Site "Sochi"]
[Date "2019.06.06"]
[Round "3.36"]
[White "Hakobyan, Astghik"]
[Black "Shirokova, Sofiya"]
[Result "1-0"]
[ECO "B50"]
[WhiteElo "1791"]
[BlackElo "1539"]
[Annotator "NA RC"]
[PlyCount "73"]
[EventDate "2019.06.02"]
[EventCountry "RUS"]
[SourceTitle "playchess.com"]
[Source "ChessBase"]
[SourceQuality "1"]
[TimeControl "5400+30"]

1. e4 {[%emt 0:00:00]} c5 {[%emt 0:00:05]} 2. Nf3 {[%emt 0:00:06]} d6 {[%emt 0:00:10]} 3. Nc3 {[%emt 0:00:08]} Nf6 {[%emt 0:00:22]} 4. e5 {[%emt 0:00:08]} dxe5 {[%emt 0:00:09]} 5. Nxe5 {[%emt 0:00:08]} a6 {[%emt 0:00:11]} 6. a4 {[%emt 0:00:24]} e6 {[%emt 0:00:20]} 7. g3 {[%emt 0:01:25]} Qc7 {[%emt 0:00:19]} 8. Nc4 {[%emt 0:00:49]} Be7 {[%emt 0:00:51]} 9. Bg2 {[%emt 0:00:23]} O-O {[%emt 0:00:48]} 10. d3 {[%emt 0:01:08]} Nbd7 {[%emt 0:01:07]} 11. Qe2 {[%emt 0:00:43]} Bd6 {[%emt 0:01:47]} 12. a5 {[%emt 0:01:09]} Rb8 {[%emt 0:02:13]} 13. Na4 {[%emt 0:00:21]} Re8 {[%emt 0:01:32]} 14. b3 {[%emt 0:08:35]} Bf8 {[%emt 0:02:03]} 15. O-O {[%emt 0:15:40]} b5 {[%emt 0:04:46]} 16. axb6 {[%emt 0:01:40]} Nxb6 {[%emt 0:02:19]} 17. Naxb6 {[%emt 0:00:52]} Rxb6 {[%emt 0:00:06]} 18. Nxb6 {[%emt 0:01:02]} Qxb6 {[%emt 0:00:06]} 19. Bb2 {[%emt 0:00:08]} Nd7 {[%emt 0:00:09]} 20. Qe4 {[%emt 0:00:20]} Nb8 {[%emt 0:02:53]} 21. Bc3 {[%emt 0:01:07]} f5 {[%emt 0:01:30]} 22. Qf3 {[%emt 0:01:27]} Bd7 {[%emt 0:02:11]} 23. Qb7 {[%emt 0:01:28]} Qd6 {[%emt 0:03:44]} 24. f4 {[%emt 0:02:02]} Bc8 {[%emt 0:01:38]} 25. Qf3 {[%emt 0:01:16]} Qb6 {[%emt 0:02:16]} 26. Kh1 {[%emt 0:01:40]} g6 {[%emt 0:05:28]} 27. Rfe1 {[%emt 0:01:11]} Bg7 {[%emt 0:01:11]} 28. Be5 {[%emt 0:06:53]} Bxe5 {[%emt 0:00:29]} 29. Rxe5 {[%emt 0:01:09]} h6 {[%emt 0:01:22]} 30. g4 {[%emt 0:01:00]} Kh7 {[%emt 0:03:58]} 31. gxf5 {[%emt 0:01:02]} gxf5 {[%emt 0:01:12]} 32. Rae1 {[%emt 0:01:28]} Rg8 {[%emt 0:00:11]} 33. R1e2 {[%emt 0:01:01]} Rg7 {[%emt 0:00:23]} 34. Qf2 {[%emt 0:10:47]} Rc7 {[%emt 0:04:53]} 35. Qh4 {[%emt 0:01:29]} Nc6 {[%emt 0:06:42]} 36. Rxe6 {[%emt 0:01:26]} Bxe6 {[%emt 0:01:46]} 37. Rxe6 {[%emt 0:00:38]} 1-0

[Event "White Rook U14 Final 2019"]
[Site "Sochi"]
[Date "2019.06.06"]
[Round "4.3"]
[White "Shirkunov, Alexandr"]
[Black "Saikin, Ilia"]
[Result "1-0"]
[ECO "E11"]
[WhiteElo "1557"]
[BlackElo "1641"]
[Annotator "NA RC"]
[PlyCount "95"]
[EventDate "2019.06.02"]
[EventCountry "RUS"]
[SourceTitle "playchess.com"]
[Source "ChessBase"]
[SourceQuality "1"]
[TimeControl "5400+30"]

1. d4 {[%emt 0:00:00]} Nf6 {[%emt 0:00:00]} 2. c4 {[%emt 0:00:00]} e6 {[%emt 0:00:00]} 3. g3 {[%emt 0:00:00]} Bb4+ {[%emt 0:00:00]} 4. Bd2 {[%emt 0:00:00]} Qe7 {[%emt 0:00:00]} 5. Bg2 {[%emt 0:00:00]} Nc6 {[%emt 0:00:00]} 6. Nf3 {[%emt 0:01:05]} Bxd2+ {[%emt 0:00:00]} 7. Nbxd2 {[%emt 0:00:11]} d6 {[%emt 0:00:04]} 8. O-O {[%emt 0:00:59]} O-O {[%emt 0:00:07]} 9. Qc2 {[%emt 0:00:00]} a5 {[%emt 0:01:24]} 10. e4 {[%emt 0:08:35]} e5 {[%emt 0:00:00]} 11. d5 {[%emt 0:00:10]} Nb8 {[%emt 0:00:00]} 12. Ne1 {[%emt 0:00:04]} Na6 {[%emt 0:02:34]} 13. Nd3 {[%emt 0:00:55]} c6 {[%emt 0:00:33]} 14. f4 {[%emt 0:06:14]} cxd5 {[%emt 0:00:54]} 15. cxd5 {[%emt 0:00:13]} Bd7 {[%emt 0:00:47]} 16. fxe5 {[%emt 0:11:37]} dxe5 {[%emt 0:00:10]} 17. Qc3 {[%emt 0:00:32]} Bb5 {[%emt 0:02:04]} 18. Rfc1 {[%emt 0:01:33]} Bxd3 {[%emt 0:03:11]} 19. Qxd3 {[%emt 0:00:00]} b5 {[%emt 0:03:32]} 20. Qxb5 {[%emt 0:01:51]} Qa7+ {[%emt 0:00:25]} 21. Kh1 {[%emt 0:01:54]} Rfb8 {[%emt 0:12:32]} 22. Qxa5 {[%emt 0:03:53]} Rxb2 {[%emt 0:01:05]} 23. Qc3 {[%emt 0:00:06]} Rab8 {[%emt 0:02:04]} 24. Qxb2 {[%emt 0:00:05]} Ng4 {[%emt 0:01:19]} 25. h3 {[%emt 0:00:48]} Nf2+ {[%emt 0:00:45]} 26. Kh2 {[%emt 0:00:38]} Nd3 {[%emt 0:00:04]} 27. Qc3 {[%emt 0:00:28]} Nxc1 {[%emt 0:00:05]} 28. Rxc1 {[%emt 0:00:00]} h6 {[%emt 0:00:37]} 29. Qxe5 {[%emt 0:00:15]} f6 {[%emt 0:00:26]} 30. Qe6+ {[%emt 0:00:51]} Kh7 {[%emt 0:00:04]} 31. Qf5+ {[%emt 0:00:00]} Kg8 {[%emt 0:00:14]} 32. Rc8+ {[%emt 0:00:00]} Rxc8 {[%emt 0:00:00]} 33. Qxc8+ {[%emt 0:00:00]} Kh7 {[%emt 0:00:00]} 34. Qf5+ {[%emt 0:00:19]} Kg8 {[%emt 0:00:24]} 35. d6 {[%emt 0:00:14]} Nc5 {[%emt 0:00:10]} 36. Qd5+ {[%emt 0:01:04]} Kh7 {[%emt 0:00:05]} 37. e5 {[%emt 0:00:20]} h5 {[%emt 0:00:44]} 38. e6 {[%emt 0:00:20]} h4 {[%emt 0:00:21]} 39. Ne4 {[%emt 0:02:44]} hxg3+ {[%emt 0:00:21]} 40. Nxg3 {[%emt 0:00:08]} f5 {[%emt 0:00:19]} 41. Qxf5+ {[%emt 0:00:15]} Kh8 {[%emt 0:00:04]} 42. Qf8+ {[%emt 0:00:24]} Kh7 {[%emt 0:00:08]} 43. Qf5+ {[%emt 0:00:41]} Kh8 {[%emt 0:00:07]} 44. e7 {[%emt 0:00:04]} Qa8 {[%emt 0:00:54]} 45. Bxa8 {[%emt 0:00:14]} g6 {[%emt 0:00:03]} 46. Qxg6 {[%emt 0:00:18]} Nd7 {[%emt 0:00:18]} 47. e8=R+ {[%emt 0:00:06]} Nf8 {[%emt 0:00:04]} 48. Rxf8# {[%emt 0:00:03]} 1-0

[Event "White Rook U14 Final 2019"]
[Site "Sochi"]
[Date "2019.06.06"]
[Round "4.4"]
[White "Krupnova, Anna"]
[Black "Toledo Flores, Marianna"]
[Result "1-0"]
[ECO "D37"]
[WhiteElo "1714"]
[BlackElo "1530"]
[Annotator "NA RC"]
[PlyCount "43"]
[EventDate "2019.06.02"]
[EventCountry "RUS"]
[SourceTitle "playchess.com"]
[Source "ChessBase"]
[SourceQuality "1"]
[TimeControl "5400+30"]

1. d4 {[%emt 0:00:00]} Nf6 {[%emt 0:00:00]} 2. c4 {[%emt 0:00:00]} e6 {[%emt 0:00:00]} 3. Nf3 {[%emt 0:00:00]} a6 {[%emt 0:00:00]} 4. Nc3 {[%emt 0:03:38]} d5 {[%emt 0:00:00]} 5. cxd5 {[%emt 0:02:20]} Nxd5 {[%emt 0:00:27]} 6. e4 {[%emt 0:04:19]} Nxc3 {[%emt 0:00:12]} 7. bxc3 {[%emt 0:00:06]} c5 {[%emt 0:00:10]} 8. Be2 {[%emt 0:02:37]} Be7 {[%emt 0:01:21]} 9. O-O {[%emt 0:02:43]} O-O {[%emt 0:00:00]} 10. Be3 {[%emt 0:02:25]} Qa5 {[%emt 0:01:58]} 11. Qc2 {[%emt 0:04:55]} Nd7 {[%emt 0:02:21]} 12. e5 {[%emt 0:12:39]} Rd8 {[%emt 0:02:40]} 13. Ng5 {[%emt 0:03:24]} g6 {[%emt 0:00:55]} 14. h4 {[%emt 0:04:33]} Qc7 {[%emt 0:01:19]} 15. Qe4 {[%emt 0:08:12]} Rb8 {[%emt 0:03:07]} 16. h5 {[%emt 0:04:40]} Nf8 {[%emt 0:00:35]} 17. Qf4 {[%emt 0:05:13]} Bxg5 {[%emt 0:00:45]} 18. Qxg5 {[%emt 0:00:16]} c4 {[%emt 0:01:18]} 19. Qh6 {[%emt 0:07:25]} Nd7 {[%emt 0:01:42]} 20. Bg5 {[%emt 0:03:00]} f6 {[%emt 0:00:40]} 21. exf6 {[%emt 0:01:07]} Rf8 {[%emt 0:00:11]} 22. Qg7# {[%emt 0:00:26]} 1-0

[Event "White Rook U14 Final 2019"]
[Site "Sochi"]
[Date "2019.06.06"]
[Round "4.5"]
[White "Putrenko, Kirill"]
[Black "Erastov, Semen"]
[Result "1/2-1/2"]
[ECO "D31"]
[WhiteElo "2010"]
[BlackElo "2028"]
[Annotator "NA RC"]
[PlyCount "108"]
[EventDate "2019.06.02"]
[EventCountry "RUS"]
[SourceTitle "playchess.com"]
[Source "ChessBase"]
[SourceQuality "1"]
[TimeControl "5400+30"]

1. d4 {[%emt 0:00:00]} d5 {[%emt 0:00:00]} 2. c4 {[%emt 0:00:00]} e6 {[%emt 0:00:00]} 3. Nc3 {[%emt 0:00:00]} c6 {[%emt 0:00:00]} 4. e4 {[%emt 0:00:00]} dxe4 {[%emt 0:00:00]} 5. Nxe4 {[%emt 0:00:00]} Bb4+ {[%emt 0:00:00]} 6. Nc3 {[%emt 0:00:00]} c5 {[%emt 0:00:00]} 7. a3 {[%emt 0:00:00]} Ba5 {[%emt 0:00:00]} 8. Nf3 {[%emt 0:00:18]} Ne7 {[%emt 0:00:50]} 9. Be3 {[%emt 0:10:43]} cxd4 {[%emt 0:05:25]} 10. Qxd4 {[%emt 0:01:32]} Qxd4 {[%emt 0:02:55]} 11. Bxd4 {[%emt 0:01:24]} Nf5 {[%emt 0:01:18]} 12. b4 {[%emt 0:00:10]} Bd8 {[%emt 0:00:13]} 13. Ne4 {[%emt 0:05:10]} O-O {[%emt 0:02:20]} 14. Bb2 {[%emt 0:02:53]} b6 {[%emt 0:03:00]} 15. Bd3 {[%emt 0:04:06]} Be7 {[%emt 0:02:42]} 16. Ke2 {[%emt 0:05:41]} Bb7 {[%emt 0:01:06]} 17. Rac1 {[%emt 0:07:16]} Nd7 {[%emt 0:02:02]} 18. Rhd1 {[%emt 0:01:55]} Rac8 {[%emt 0:01:49]} 19. Bb1 {[%emt 0:02:06]} Rfd8 {[%emt 0:00:34]} 20. g4 {[%emt 0:02:33]} Bxe4 {[%emt 0:01:17]} 21. Bxe4 {[%emt 0:00:37]} Nd6 {[%emt 0:03:45]} 22. Bd3 {[%emt 0:00:21]} f6 {[%emt 0:00:32]} 23. h3 {[%emt 0:00:27]} e5 {[%emt 0:00:45]} 24. Nd2 {[%emt 0:11:31]} a5 {[%emt 0:01:00]} 25. f3 {[%emt 0:00:36]} axb4 {[%emt 0:07:34]} 26. axb4 {[%emt 0:03:07]} Nb8 {[%emt 0:01:29]} 27. Nb3 {[%emt 0:00:06]} Nc6 {[%emt 0:00:37]} 28. c5 {[%emt 0:05:03]} bxc5 {[%emt 0:07:57]} 29. bxc5 {[%emt 0:02:59]} Nb7 {[%emt 0:00:20]} 30. Be4 {[%emt 0:00:03]} Rxd1 {[%emt 0:00:46]} 31. Kxd1 {[%emt 0:05:24]} g6 {[%emt 0:04:18]} 32. Ke2 {[%emt 0:00:40]} Kf7 {[%emt 0:01:00]} 33. Ba3 {[%emt 0:01:38]} Ke6 {[%emt 0:01:51]} 34. Rd1 {[%emt 0:04:58]} f5 {[%emt 0:02:59]} 35. Bd5+ {[%emt 0:00:37]} Kf6 {[%emt 0:04:24]} 36. Rc1 {[%emt 0:01:35]} Nbd8 {[%emt 0:01:56]} 37. Kd3 {[%emt 0:01:22]} Ne6 {[%emt 0:02:45]} 38. Bxc6 {[%emt 0:04:21]} Rxc6 {[%emt 0:01:03]} 39. Kc4 {[%emt 0:02:03]} Rc8 {[%emt 0:00:21]} 40. Bb4 {[%emt 0:00:51]} Ng5 {[%emt 0:02:15]} 41. Rc3 {[%emt 0:01:40]} Nxh3 {[%emt 0:01:30]} 42. Ba5 {[%emt 0:00:03]} Nf4 {[%emt 0:00:27]} 43. Bb6 {[%emt 0:05:09]} h5 {[%emt 0:01:06]} 44. gxh5 {[%emt 0:01:03]} gxh5 {[%emt 0:01:24]} 45. Kb5 {[%emt 0:01:53]} h4 {[%emt 0:01:15]} 46. Rc2 {[%emt 0:00:33]} h3 {[%emt 0:00:01]} 47. Rh2 {[%emt 0:00:18]} Kg5 {[%emt 0:04:30]} 48. c6 {[%emt 0:03:16]} Kh4 {[%emt 0:02:11]} 49. Bf2+ {[%emt 0:01:02]} Kh5 {[%emt 0:00:31]} 50. Nc5 {[%emt 0:00:03]} Bxc5 {[%emt 0:02:58]} 51. Bxc5 {[%emt 0:01:10]} e4 {[%emt 0:01:42]} 52. fxe4 {[%emt 0:00:08]} fxe4 {[%emt 0:00:56]} 53. Bd6 {[%emt 0:02:33]} Kg4 {[%emt 0:01:18]} 54. Bxf4 {[%emt 0:00:36]} Kxf4 {[%emt 0:00:23]} 1/2-1/2